bitfinex/quotes_ETHUSD_20250130
["timestamp","ask_amount","ask_price","bid_price","bid_amount"]
[1738214141994,3.13069,3194.2,3194.0,0.7958]
[1738214142477,0.04158042,3194.1,3194.0,0.7958]
[1738214143198,3.13108,3193.8,3193.2,0.7923]
[1738214143399,3.13128,3193.6,3193.2,0.7923]
[1738214143899,0.04154227,3193.5,3193.2,0.7923]
[1738214144399,0.04154227,3193.5,3192.1,11.94266]
[1738214144400,3.13171,3193.2,3192.9,0.7923]
[1738214144556,3.13171,3193.2,3192.6,3.96293]
[1738214144760,0.04144036,3193.1,3192.6,4.58710755]
[1738214145368,0.04144036,3193.1,3192.7,3.13214]
[1738214145774,0.04144036,3193.1,3192.7,3.36615391]
[1738214146999,0.04144036,3193.1,3192.7,3.13214]
[1738214147768,3.13186,3193.0,3192.4,3.88583]
[1738214147968,0.04106558,3192.9,3192.4,3.88583]
[1738214148562,0.04106558,3192.9,3192.5,0.23411705]
[1738214149004,0.015,3193.1,3192.6,3.13216]
[1738214149190,0.04097044,3192.8,3192.6,3.13216]
[1738214149499,0.015,3193.1,3192.6,3.13216]
[1738214149700,0.04096193,3192.7,3192.6,3.13216]
[1738214149902,0.015,3193.1,3192.6,3.13216]
[1738214150263,0.04098746,3193.0,3192.6,3.13216]
[1738214151117,0.04098746,3193.0,3192.4,3.8858]
[1738214151317,0.86228746,3193.0,3192.5,3.13233]
[1738214152097,0.86228746,3193.0,3192.4,3.8858]
[1738214152418,0.86228746,3193.0,3192.6,3.13224]
[1738214156204,3.99420746,3193.0,3192.4,3.1324]
[1738214156419,3.13195,3192.9,3192.4,3.1324]
[1738214156618,3.17284607,3192.9,3192.4,3.1324]
[1738214156915,0.04089607,3192.9,3192.4,3.1324]
[1738214157298,0.04089607,3192.9,3192.5,0.234158]
[1738214157716,0.04089607,3192.9,3192.6,3.13224]
[1738214157920,0.04089607,3192.9,3192.7,0.7915]
[1738214158121,0.04089607,3192.9,3192.8,3.13204]
[1738214158319,0.8183,3193.3,3192.8,3.13204]
[1738214158635,3.93553,3193.6,3192.8,3.13204]
[1738214158798,0.04089523,3193.2,3193.0,3.13175]
[1738214159002,0.8042,3193.6,3193.1,3.13173]
[1738214159237,0.7892,3193.6,3193.1,3.13173]
[1738214159409,0.7892,3193.6,3193.0,3.13175]
[1738214159589,0.7892,3193.6,3193.2,3.13165]
[1738214160729,3.13118,3193.7,3193.2,3.93745]
[1738214161149,0.03950471,3193.6,3193.2,3.93745]
[1738214165229,0.03950471,3193.6,3193.2,0.8058]
[1738214165398,0.03950471,3193.6,3193.1,3.13174]
[1738214168833,0.03950471,3193.6,3193.1,6.26342]
[1738214169039,0.03950471,3193.6,3193.1,3.13168]
[1738214169283,0.03950471,3193.6,3193.2,3.13164]
[1738214169763,0.03950471,3193.6,3193.2,3.13157]
[1738214169968,0.0075,3193.7,3193.2,3.13157]
[1738214170166,0.03948925,3193.6,3193.2,3.13157]
[1738214172089,0.8169,3193.9,3193.2,3.13157]
[1738214172271,0.03957491,3193.5,3193.4,3.13145]
[1738214172473,0.8169,3193.9,3193.4,7.05324]
[1738214172666,0.03957491,3193.5,3193.4,3.92179]
[1738214173294,0.8169,3193.9,3193.4,4.15621628]
[1738214173496,0.03957491,3193.5,3193.4,4.15621628]
[1738214173995,0.8169,3193.9,3193.4,4.15621628]
[1738214174165,0.03957491,3193.5,3193.4,4.15621628]
[1738214174361,3.9562,3194.2,3193.5,3.13128]
[1738214174567,0.03963109,3194.1,3193.5,3.13128]
[1738214174787,0.03963109,3194.1,3193.6,3.13125]
[1738214175293,0.03963109,3194.1,3193.7,3.13113]
[1738214177485,3.17041109,3194.1,3193.6,3.13119]
[1738214177685,3.17041109,3194.1,3193.4,3.92185]
[1738214177881,0.03963109,3194.1,3193.4,3.92185]
[1738214178083,3.13115,3193.8,3193.1,0.7962]
[1738214178430,3.1313,3193.6,3193.1,0.7962]
[1738214178575,3.88996,3193.5,3192.9,3.13189]
[1738214178880,0.03957156,3193.4,3192.9,3.13189]
[1738214179087,3.17105156,3193.4,3193.2,0.23422778]
[1738214179320,4.32971516,3193.3,3193.2,0.23422778]
[1738214179711,4.36927821,3193.3,3193.2,0.23422778]
[1738214180083,1.23772821,3193.3,3193.2,0.23422778]
[1738214180288,0.84476305,3193.3,3193.2,0.23422778]
[1738214180488,0.84476305,3193.3,3192.7,4.00658097]
[1738214180706,0.03956305,3193.3,3193.0,3.88302]
[1738214180996,0.7534,3193.5,3193.0,3.88302]
[1738214181312,0.7534,3193.5,3193.1,3.13174]
[1738214181525,0.03952636,3193.4,3193.1,3.13174]
[1738214181685,0.03952636,3193.4,3193.0,3.88302]
[1738214181890,0.03952636,3193.4,3193.2,3.13163]
[1738214182104,0.7912,3193.7,3193.3,3.13155]
[1738214182498,3.13839,3194.0,3193.3,3.13155]
[1738214182499,3.13089,3194.0,3193.3,3.13155]
[1738214182690,3.13089,3194.0,3193.4,3.13139]
[1738214182691,3.92209,3194.0,3193.4,3.13139]
[1738214183930,3.13098,3193.9,3193.3,3.13155]
[1738214184494,0.7803,3193.5,3193.0,3.88295]
[1738214184693,3.91166,3193.5,3192.8,6.26406]
[1738214184916,3.91166,3193.5,3192.8,3.13203]
[1738214185426,0.7803,3193.5,3192.9,3.13194]
[1738214186522,0.7803,3193.5,3192.8,3.13203]
[1738214186727,0.7803,3193.5,3193.0,3.13183]
[1738214186925,3.91166,3193.5,3193.0,0.23438701]
[1738214187424,3.13897,3193.4,3193.0,0.23438701]
[1738214187631,3.13156,3193.3,3193.0,0.23438701]
[1738214187924,3.13897,3193.4,3193.0,0.23438701]
[1738214188129,3.95105,3193.1,3193.0,0.23438701]
[1738214188507,3.1321,3192.8,3192.2,3.92619]
[1738214188713,0.8118,3192.7,3192.2,3.13259]
[1738214189449,0.8118,3192.7,3191.9,3.13284]
[1738214189450,3.13236,3192.5,3192.1,0.64233695]
[1738214190163,3.13236,3192.5,3191.8,3.13295]
[1738214190299,3.6439108,3192.5,3192.2,0.23451936]
[1738214191004,0.0380846,3192.4,3192.2,0.23451936]
[1738214191940,0.0380846,3192.4,3192.0,0.23451936]
[1738214192919,0.0380846,3192.4,3192.0,3.36725936]
[1738214193104,0.0380846,3192.4,3192.1,3.13271]
[1738214193306,0.0075,3192.6,3192.1,6.26535]
[1738214193508,0.03807608,3192.3,3192.1,6.26535]
[1738214193740,0.8118,3192.7,3192.1,3.13264]
[1738214193942,0.8118,3192.7,3192.2,0.828]
[1738214194153,0.8118,3192.7,3192.3,3.13253]
[1738214194334,0.8118,3192.7,3192.2,0.828]
[1738214194538,3.13226,3192.6,3192.1,3.13264]
[1738214194857,0.394406,3192.5,3191.9,3.75804493]
[1738214195020,6.26459,3192.6,3191.9,3.75804493]
[1738214195351,3.13236,3192.5,3191.9,3.75804493]
[1738214195849,3.13226,3192.6,3191.9,0.62514493]
[1738214196038,0.7766,3192.2,3191.9,0.62514493]
[1738214199053,0.8139,3192.5,3191.9,4.56036493]
[1738214199206,0.8139,3192.5,3191.9,7.69319493]
[1738214199613,0.8139,3192.5,3192.0,3.13276]
[1738214200446,0.8139,3192.5,3191.9,4.56027493]
[1738214201030,0.8139,3192.5,3191.9,7.69313493]
[1738214201433,0.8139,3192.5,3191.9,4.56027493]
[1738214201762,4.340928,3192.5,3191.9,3.75797493]
[1738214203565,3.13245,3192.4,3191.9,3.75797493]
[1738214203865,4.340868,3192.5,3191.9,3.75797493]
[1738214205574,3.94625,3192.5,3192.0,3.1328]
[1738214205734,0.8139,3192.5,3192.0,3.1328]
[1738214206131,0.03760607,3192.4,3192.0,3.1328]
[1738214207863,0.03760607,3192.4,3191.7,0.8158]
[1738214208151,0.03760607,3192.4,3192.2,3.13262]
[1738214208354,0.8064,3192.5,3192.2,3.13262]
[1738214208521,0.03629169,3192.3,3192.2,3.93902]
[1738214208716,0.0075,3192.7,3192.3,3.13252]
[1738214209157,0.03631722,3192.6,3192.3,3.13252]
[1738214210353,0.03631722,3192.6,3192.2,0.8064]
[1738214211569,0.03631722,3192.6,3192.3,3.13253]
[1738214211935,3.89997,3192.8,3192.3,3.13253]
[1738214212460,0.03638982,3192.7,3192.3,3.13253]
[1738214212838,3.89997,3192.8,3192.3,3.13253]
[1738214213020,0.03638131,3192.6,3192.3,3.13253]
[1738214213215,3.89997,3192.8,3192.3,3.13253]
[1738214213422,0.03639359,3192.7,3192.3,3.13253]
[1738214213861,4.603154,3192.8,3192.3,3.13253]
[1738214214030,0.03638884,3192.6,3192.3,3.13253]
[1738214214236,0.03639735,3192.7,3192.3,3.13253]
[1738214214449,0.03638033,3192.5,3192.3,3.13253]
[1738214214660,3.89997,3192.8,3192.3,3.13253]
[1738214214867,0.03637182,3192.4,3192.3,3.13253]
[1738214215172,3.89997,3192.8,3192.3,3.13253]
[1738214215376,0.03637182,3192.4,3192.3,3.13253]
[1738214215747,3.89997,3192.8,3192.3,3.13253]
[1738214216076,3.88597,3193.0,3192.4,3.13238]
[1738214216279,0.03639735,3192.7,3192.4,3.13238]
[1738214216479,3.88597,3193.0,3192.4,3.13238]
[1738214216769,0.03641898,3192.6,3192.4,3.13238]
[1738214216956,3.88597,3193.0,3192.4,3.13238]
[1738214217160,0.03641047,3192.5,3192.4,3.13238]
[1738214217473,0.7541,3193.0,3192.5,0.23447205]
[1738214217680,0.0075,3193.1,3192.6,3.90532]
[1738214218178,3.13928,3193.1,3192.6,3.90532]
[1738214218874,0.0075,3193.1,3192.7,0.23447205]
[1738214219080,0.7541,3193.2,3192.7,0.23447205]
[1738214219385,3.92707,3193.6,3192.9,3.13185]
[1738214220237,3.92707,3193.6,3193.0,3.13179]
[1738214220644,0.7958,3193.6,3193.0,3.36626205]
[1738214220877,0.8324,3193.9,3193.3,3.13155]
[1738214221245,0.04376484,3193.8,3193.1,0.8155]
[1738214221574,3.17483484,3193.8,3193.2,3.13162]
[1738214222492,0.03626484,3193.8,3193.4,3.13145]
[1738214222697,0.03626484,3193.8,3193.6,3.13123]
[1738214222884,0.0075,3194.1,3193.6,3.13123]
[1738214223079,0.7937,3194.2,3193.8,3.13106]
[1738214223384,3.92437,3194.2,3193.6,3.13123]
[1738214224060,0.7937,3194.2,3193.7,3.13115]
[1738214224254,6.26817,3194.6,3193.8,3.13104]
[1738214224469,0.8079,3194.5,3193.8,3.13104]
[1738214224671,0.8079,3194.5,3193.9,3.13096]
[1738214225634,3.93831,3194.5,3193.9,3.13096]
[1738214225794,3.93831,3194.5,3193.6,3.13121]
[1738214225795,3.13048,3194.4,3193.7,3.13108]
[1738214227098,3.13048,3194.4,3193.4,3.13144]
[1738214227099,0.8107,3194.0,3193.4,3.13144]
[1738214227903,0.8107,3194.0,3193.5,3.13126]
[1738214228689,0.03561502,3193.9,3193.5,3.13126]
[1738214229570,3.90253,3194.2,3193.5,3.13126]
[1738214229770,0.03563203,3194.1,3193.5,3.13126]
[1738214229971,3.16640203,3194.1,3193.5,3.13126]
[1738214231910,0.03563203,3194.1,3193.3,3.93964]
[1738214232116,3.13112,3193.8,3192.9,0.8141]
[1738214232407,0.7968,3193.6,3192.9,3.13189]
[1738214232607,3.92812,3193.6,3192.9,3.13189]
[1738214232774,3.13149,3193.4,3192.7,3.1321]
[1738214232974,0.8312586,3193.3,3192.7,3.1321]
[1738214233815,3.9628386,3193.3,3192.7,3.1321]
[1738214234016,0.8312586,3193.3,3192.7,3.1321]
[1738214234212,0.8312586,3193.3,3192.7,3.74735542]
[1738214234423,3.13916,3193.2,3192.7,0.61525542]
[1738214234611,0.85206458,3193.1,3192.7,0.61525542]
[1738214235522,0.85206458,3193.1,3192.7,3.74732542]
[1738214235719,0.03426458,3193.1,3192.7,4.51682542]
[1738214235909,0.03426458,3193.1,3192.9,3.13192]
[1738214236112,0.7663,3193.3,3192.9,3.13192]
[1738214236413,0.03404712,3193.2,3192.9,3.13192]
[1738214236617,3.13176,3193.1,3192.5,3.13233]
[1738214236812,0.8043,3193.0,3192.1,3.89895]
[1738214236979,0.7968,3192.8,3192.2,3.13257]
[1738214237185,0.03399775,3192.7,3192.2,3.13257]
[1738214237486,0.03399775,3192.7,3192.5,3.13233]
[1738214237897,0.7799,3193.0,3192.6,3.13224]
[1738214238424,0.7799,3193.0,3192.5,3.13233]
[1738214240221,0.7799,3193.0,3192.6,3.13222]
[1738214240810,3.91179,3193.0,3192.4,3.13236]
[1738214241016,4.616147,3193.0,3192.4,3.13236]
[1738214241410,1.484257,3193.0,3192.4,3.13236]
[1738214241601,0.7799,3193.0,3192.5,3.13233]
[1738214241929,0.7799,3193.0,3192.6,3.13222]
[1738214246037,0.7799,3193.0,3192.5,3.13232]
[1738214250338,0.7799,3193.0,3192.5,6.26457]
[1738214250704,0.7799,3193.0,3192.6,3.1322]
[1738214251037,0.03361318,3192.9,3192.6,3.1322]
[1738214251943,0.03361318,3192.9,3192.3,3.1325]
[1738214252122,0.03361318,3192.9,3192.4,3.13237]
[1738214252325,0.7799,3193.0,3192.4,3.13237]
[1738214252523,0.03363104,3192.8,3192.4,3.36625778]
[1738214252757,0.7799,3193.0,3192.4,3.36625778]
[1738214253045,0.7799,3193.0,3192.6,3.13224]
[1738214253245,0.03362825,3192.9,3192.6,3.13224]
[1738214253614,0.03362825,3192.9,3192.7,3.13207]
[1738214258547,0.7842,3193.2,3192.8,3.13204]
[1738214259563,0.7842,3193.2,3192.9,3.36611063]
[1738214259776,3.0,3194.0,3192.9,3.36611063]
[1738214259777,3.90524,3193.9,3193.4,3.13145]
[1738214259922,4.295764,3193.9,3193.4,3.13145]
[1738214260682,3.90524,3193.9,3193.4,3.13145]
[1738214260841,3.90524,3193.9,3193.2,3.13156]
[1738214262378,3.90524,3193.9,3193.3,3.13154]
[1738214262585,3.90524,3193.9,3193.3,3.36594829]
[1738214263742,3.90524,3193.9,3193.3,3.36587829]
[1738214263942,0.7742,3193.9,3193.4,0.23440829]
[1738214264727,3.90518,3193.9,3193.4,0.23440829]
[1738214264928,3.90518,3193.9,3193.5,0.23440829]
[1738214266028,0.0330206,3193.8,3193.5,0.23440829]
[1738214266640,0.0330206,3193.8,3193.4,0.23440829]
[1738214266995,0.0330206,3193.8,3193.7,3.13116]
[1738214267535,0.8102,3194.2,3193.8,3.13106]
[1738214267736,0.8102,3194.2,3193.7,3.13116]
[1738214268387,3.94093,3194.2,3193.5,6.26262]
[1738214268531,3.13077,3194.1,3193.5,3.13129]
[1738214272422,3.13077,3194.1,3193.6,3.13124]
[1738214273594,0.8289,3194.0,3193.6,3.13124]
[1738214274093,0.0322602,3193.9,3193.6,3.13124]
[1738214274792,0.8289,3194.0,3193.6,3.13124]
[1738214275622,0.0322602,3193.9,3193.6,3.13124]
[1738214282628,0.0322602,3193.9,3193.5,0.8002]
[1738214282833,3.13124,3193.7,3193.1,3.13173]
[1738214283326,0.03225351,3193.6,3193.1,3.13173]
[1738214283487,3.13124,3193.7,3193.1,3.13173]
[1738214284132,0.03225351,3193.6,3193.1,3.13172]
[1738214284428,3.13124,3193.7,3193.1,3.13172]
[1738214284627,3.13124,3193.7,3193.2,0.23434445]
[1738214284830,0.03219326,3193.6,3193.2,0.23434445]
[1738214285131,3.13124,3193.7,3193.2,0.23434445]
[1738214285292,0.03218476,3193.5,3193.2,0.23434445]
[1738214285626,3.13124,3193.7,3193.2,0.23434445]
[1738214285797,3.96417,3193.5,3193.2,0.23434445]
[1738214285998,3.96417,3193.5,3193.3,0.23434445]
[1738214286320,0.03215365,3193.4,3193.3,0.23434445]
[1738214287192,3.92840365,3193.4,3193.3,0.23434445]
[1738214288706,3.92840365,3193.4,3192.8,3.13202]
[1738214289734,0.03215365,3193.4,3193.3,3.13155]
[1738214290111,0.03205573,3193.4,3193.3,3.13155]
[1738214290307,0.8146,3193.9,3193.3,3.13155]
[1738214290500,0.8146,3194.3,3193.5,2.98823735]
[1738214290699,0.8146,3194.3,3193.9,3.13087]
[1738214290896,3.13021,3194.7,3193.7,0.8249]
[1738214290897,0.7912,3194.7,3193.7,0.8249]
[1738214291098,0.7912,3194.7,3194.3,3.13049]
[1738214291939,0.7847,3195.0,3194.3,3.13049]
[1738214292142,0.7772,3195.0,3194.6,3.13022]
[1738214292297,0.7772,3195.4,3194.8,3.13005]
[1738214292500,0.7772,3195.4,3194.9,3.12996]
[1738214293734,0.7772,3195.4,3195.0,3.12986]
[1738214294100,3.90643,3195.7,3195.1,3.12976]
[1738214294614,0.62595974,3195.8,3195.1,3.12976]
[1738214294811,3.12903,3195.9,3195.3,3.12951]
[1738214295028,0.7925,3196.0,3195.2,2.98823735]
[1738214295345,0.7925,3196.0,3195.6,3.12922]
[1738214295705,0.7925,3196.0,3195.2,6.11790735]
[1738214295920,0.7925,3196.0,3195.5,3.12939]
[1738214296328,0.7925,3196.0,3195.2,3.12967]
[1738214296329,0.03078304,3195.9,3195.2,3.12967]
[1738214296534,0.7925,3196.0,3195.2,3.76948146]
[1738214296849,0.03089502,3195.8,3195.4,3.12947]
[1738214297077,0.03090351,3195.9,3195.4,3.12947]
[1738214297270,0.0308677,3195.7,3195.4,3.12947]
[1738214297472,0.0308762,3195.8,3195.4,3.12947]
[1738214297648,0.0308592,3195.6,3195.4,3.12947]
[1738214297849,6.25754,3196.2,3195.4,3.12947]
[1738214298076,0.03085071,3195.5,3195.4,3.12947]
[1738214298278,3.12883,3196.1,3195.4,3.12947]
[1738214298750,0.03090448,3196.0,3195.4,3.12947]
[1738214299270,0.03090448,3196.0,3195.5,3.1293]
[1738214299477,0.03090448,3196.0,3195.5,3.12933]
[1738214299775,0.7839,3196.3,3195.6,3.12929]
[1738214299776,0.03090728,3195.9,3195.6,3.12929]
[1738214299987,0.7839,3196.3,3195.7,3.12913]
[1738214301830,3.91254,3196.3,3195.7,3.12913]
[1738214305302,3.12872,3196.2,3195.5,3.90168]
[1738214305603,3.129,3196.0,3195.4,3.12949]
[1738214310597,3.12907,3195.9,3195.2,4.53598146]
[1738214310812,2.98783387,3196.7,3194.8,3.13006]
[1738214310813,3.1292,3195.7,3194.8,3.13006]
[1738214311014,0.839,3195.9,3194.8,3.13006]
[1738214311176,0.7903,3195.3,3194.8,3.13006]
[1738214311706,0.02962588,3195.2,3194.8,3.13006]
[1738214312008,0.7903,3195.3,3194.8,3.13006]
[1738214312223,0.02951197,3195.1,3194.8,3.13006]
[1738214312518,0.7903,3195.3,3194.8,3.13006]
[1738214312724,0.02950347,3195.0,3194.8,3.13006]
[1738214313089,0.7903,3195.3,3194.8,3.13006]
[1738214313614,0.02927952,3195.2,3194.8,3.13006]
[1738214313919,0.7903,3195.3,3194.9,0.64077153]
[1738214314125,0.02927102,3195.1,3194.9,0.64077153]
[1738214314423,0.7903,3195.3,3194.6,3.13024]
[1738214314621,0.02925499,3195.0,3194.5,3.13031]
[1738214314805,3.12975,3195.2,3194.5,3.13031]
[1738214314984,0.0293755,3194.9,3194.5,3.13031]
[1738214315325,3.12975,3195.2,3194.6,3.13028]
[1738214315508,0.02932559,3194.8,3194.7,0.64083415]
[1738214315713,3.12975,3195.2,3194.7,0.64083415]
[1738214317022,0.02922207,3195.1,3194.7,0.64083415]
[1738214317515,0.02922207,3195.1,3194.7,3.77101415]
[1738214319326,0.02922207,3195.1,3195.0,3.12989]
[1738214319643,3.12917,3195.8,3195.3,3.12954]
[1738214319644,0.8231,3195.8,3195.3,3.12954]
[1738214320094,0.02801574,3195.7,3195.3,3.12954]
[1738214320623,0.02800725,3195.6,3195.3,3.12954]
[1738214320933,3.9522,3195.8,3195.3,3.12954]
[1738214321083,0.02799875,3195.5,3195.3,3.12954]
[1738214321420,0.02799026,3195.4,3195.3,3.12954]
[1738214321582,0.8231,3195.8,3195.3,3.12954]
[1738214321778,0.02801574,3195.7,3195.3,3.12954]
[1738214322009,0.8231,3195.8,3194.8,0.7523]
[1738214322225,0.02801574,3195.7,3195.3,3.12953]
[1738214322427,0.8231,3195.8,3195.3,3.36354591]
[1738214322638,0.02801574,3195.7,3195.3,3.36351591]
[1738214323145,0.02800725,3195.6,3195.4,3.12949]
[1738214323471,0.8231,3195.8,3195.4,3.12949]
[1738214323623,0.02799875,3195.5,3195.4,3.12949]
[1738214323831,0.8231,3195.8,3195.4,3.12949]
[1738214324137,3.93065,3196.1,3195.4,3.93319]
[1738214324342,0.8018,3196.1,3195.8,3.1291]
[1738214324541,0.8018,3196.4,3195.8,6.25814]
[1738214324698,0.8018,3196.4,3195.8,3.12904]
[1738214324897,0.8018,3196.4,3195.9,3.12899]
[1738214325410,0.8018,3196.4,3195.8,3.12904]
[1738214325627,3.93032,3196.4,3195.8,3.12904]
[1738214325826,3.93032,3196.4,3196.0,3.12888]
[1738214325827,0.8018,3196.4,3196.0,3.12888]
[1738214326026,0.02840555,3196.3,3196.2,3.12868]
[1738214326243,3.92956,3197.2,3196.5,3.1284]
[1738214326548,3.78213387,3197.9,3196.7,0.8037]
[1738214326699,0.8018,3197.9,3197.0,3.12787]
[1738214326903,3.92886,3197.9,3197.2,3.12772]
[1738214327239,3.520046,3197.8,3197.2,3.12772]
[1738214328314,3.520046,3197.8,3197.0,3.12787]
[1738214328315,3.12727,3197.7,3197.0,3.12787]
[1738214328552,3.520036,3197.8,3196.9,0.62831682]
[1738214328863,3.520036,3197.8,3197.1,3.12774]
[1738214329018,0.73021699,3197.7,3197.1,3.12774]
[1738214331066,0.73021699,3197.7,3197.2,3.12773]
[1738214331229,3.520036,3197.8,3196.9,3.75630682]
[1738214331435,3.12726,3197.7,3197.1,3.12781]
[1738214333162,3.12726,3197.7,3196.9,3.12799]
[1738214333664,3.12781,3197.2,3196.5,3.12835]
[1738214333867,3.12791,3197.1,3196.5,3.12835]
[1738214334158,3.12791,3197.1,3196.6,0.62669198]
[1738214335652,3.12778,3197.2,3196.6,0.62669198]
[1738214336904,0.8234,3197.6,3197.1,3.12773]
[1738214337070,3.12713,3197.9,3197.1,3.12773]
[1738214337071,3.91203,3197.9,3197.3,3.12756]
[1738214337266,3.91203,3197.9,3197.4,3.12753]
[1738214337267,0.7849,3197.9,3197.4,3.12753]
[1738214337472,3.12687,3198.1,3197.5,3.12741]
[1738214337867,0.812,3198.2,3197.6,3.12733]
[1738214338054,3.93876,3198.2,3197.6,3.12733]
[1738214338464,3.12696,3198.0,3197.4,3.12747]
[1738214338664,3.12717,3197.8,3197.1,3.87797]
[1738214338999,3.12717,3197.8,3197.2,3.12771]
[1738214340081,3.12717,3197.8,3197.2,3.76187556]
[1738214340352,3.12753,3197.5,3196.8,3.12806]
[1738214340670,3.12765,3197.3,3196.7,3.75048339]
[1738214341021,0.02988351,3197.2,3196.7,3.75048339]
[1738214341401,3.81958639,3197.4,3196.8,3.12806]
[1738214341705,3.81958639,3197.4,3196.7,3.75048339]
[1738214341706,3.157572,3197.3,3196.7,3.75048339]
[1738214341992,0.8253,3197.2,3196.7,3.75048339]
[1738214342155,0.02987503,3197.1,3196.7,3.75048339]
[1738214342721,3.15770503,3197.1,3196.7,0.62227339]
[1738214342918,3.55600553,3197.1,3196.7,0.62227339]
[1738214343216,3.55600553,3197.1,3196.4,3.12845]
[1738214343374,3.12794,3197.0,3196.4,3.12845]
[1738214343575,0.02992198,3196.9,3196.4,3.12845]
[1738214343978,0.02992198,3196.9,3196.2,3.76480586]
[1738214344200,0.8253,3196.7,3196.2,3.76480586]
[1738214344399,0.02964456,3196.6,3196.3,3.1286]
[1738214344617,0.8253,3196.7,3196.3,3.1286]
[1738214344802,0.02964456,3196.6,3196.0,3.1289]
[1738214345725,3.12848,3196.5,3195.8,3.12906]
[1738214345929,3.12862,3196.3,3195.7,3.12911]
[1738214346218,0.02959496,3196.2,3195.9,3.12899]
[1738214346391,3.89095,3196.5,3195.9,3.12899]
[1738214346589,0.02940596,3196.4,3195.8,3.12904]
[1738214347317,3.15793596,3196.4,3195.8,3.12904]
[1738214348485,3.15793596,3196.4,3195.9,3.129]
[1738214349325,3.15793596,3196.4,3195.8,3.12904]
[1738214351536,0.02940596,3196.4,3195.9,3.12897]
[1738214354342,0.02940596,3196.4,3195.5,0.55]
[1738214354493,0.02940596,3196.4,3196.0,3.12887]
[1738214354693,0.7625,3196.5,3196.0,3.12887]
[1738214354931,0.02948368,3196.3,3196.0,3.12887]
[1738214355130,0.02949218,3196.4,3196.1,3.12881]
[1738214355333,0.02947519,3196.2,3196.1,3.12881]
[1738214355534,0.7625,3196.5,3196.0,3.12887]
[1738214355738,0.02947519,3196.2,3196.0,3.12887]
[1738214355908,0.7625,3196.5,3196.0,6.2577]
[1738214356108,0.0294667,3196.1,3196.0,6.2577]
[1738214356406,0.7625,3196.5,3196.0,6.2577]
[1738214356606,0.02949218,3196.4,3196.0,6.2577]
[1738214356843,0.02949218,3196.4,3196.0,3.12883]
[1738214357136,0.02949218,3196.4,3196.0,3.36253034]
[1738214358247,3.91096,3196.7,3196.1,3.12873]
[1738214358443,3.15783916,3196.6,3196.0,3.12883]
[1738214358947,0.02950916,3196.6,3196.1,3.12877]
[1738214360517,0.02950916,3196.6,3196.0,3.12883]
[1738214361145,0.02950916,3196.6,3196.2,3.12868]
[1738214361346,0.02950916,3196.6,3196.1,1.03021339]
[1738214362848,0.02950916,3196.6,3196.1,4.15899339]
[1738214363047,0.7605,3196.1,3195.3,3.94284]
[1738214363342,3.15831968,3196.0,3195.4,3.12947]
[1738214363550,3.15831968,3196.0,3195.3,0.8133]
[1738214363716,0.02932968,3196.0,3195.4,3.12941]
[1738214364819,0.02932968,3196.0,3195.5,0.23383869]
[1738214366159,3.9615,3195.6,3195.5,0.23383869]
[1738214366653,3.99031508,3195.6,3195.5,0.23383869]
[1738214367504,3.99031508,3195.6,3195.1,0.23383869]
[1738214368106,0.86101508,3195.6,3195.1,3.36361869]
[1738214368627,0.86101508,3195.6,3195.1,3.36357869]
[1738214369222,0.86101508,3195.6,3195.2,0.23383869]
[1738214371013,3.99032508,3195.6,3195.3,0.23383869]
[1738214371548,0.86101508,3195.6,3195.3,0.23383869]
[1738214371909,3.12949,3195.4,3195.3,0.23383869]
[1738214372107,4.61217951,3195.4,3195.3,0.23383869]
[1738214372373,4.64101999,3195.4,3195.3,0.23383869]
[1738214372575,3.12976,3195.2,3194.3,3.13054]
[1738214372889,0.02852633,3195.1,3194.6,3.1302]
[1738214373901,0.02852633,3195.1,3194.7,0.23397896]
[1738214374040,0.02852633,3195.1,3195.0,3.12989]
[1738214374240,0.7707,3195.4,3195.0,3.12989]
[1738214374558,0.02804157,3195.3,3195.1,3.12979]
[1738214375782,0.02804157,3195.3,3195.0,0.23397896]
[1738214376142,0.02804157,3195.3,3194.9,3.12991]
[1738214376573,0.02804157,3195.3,3195.0,3.12986]
[1738214377082,0.7707,3195.4,3195.0,3.12986]
[1738214377467,0.7707,3195.4,3195.1,3.12976]
[1738214378878,0.7707,3195.4,3194.9,3.12992]
[1738214379083,1.160705,3195.4,3194.5,0.7723]
[1738214379265,3.12969,3195.3,3194.5,3.1303]
[1738214379467,0.8127,3195.3,3194.5,3.1303]
[1738214379673,3.12975,3195.2,3194.5,3.1303]
[1738214380259,0.76,3194.5,3193.9,3.1309]
[1738214380446,0.76,3194.3,3193.5,0.32486595]
[1738214380652,0.76,3193.6,3193.5,0.32486595]
[1738214380845,0.76,3193.6,3193.0,3.13178]
[1738214381184,3.89127,3193.6,3193.0,3.13178]
[1738214381357,0.76,3193.6,3193.1,0.64207971]
[1738214381555,0.7991,3194.0,3193.3,3.13153]
[1738214381985,0.7991,3194.0,3193.2,3.13157]
[1738214382191,3.92997,3194.0,3193.4,3.13145]
[1738214382390,3.13097,3193.9,3193.3,3.13155]
[1738214382692,3.13112,3193.8,3193.1,4.007448]
[1738214382845,3.13097,3193.9,3193.1,0.875708]
[1738214383049,3.13117,3193.7,3193.1,0.875708]
[1738214383345,3.13117,3193.7,3193.1,4.007428]
[1738214383750,3.13117,3193.7,3193.1,3.77379971]
[1738214385183,0.7633,3193.3,3192.4,0.7769]
[1738214385386,0.7633,3193.3,3191.8,2.98033387]
[1738214385387,3.13215,3192.7,3192.1,3.13271]
[1738214385586,0.774,3192.6,3192.0,0.7769]
[1738214385788,3.90625,3192.6,3191.9,3.13292]
[1738214386091,3.13235,3192.5,3191.7,3.9492]
[1738214386249,3.13235,3192.5,3191.7,1.45058888]
[1738214386250,3.13261,3192.3,3191.7,1.45058888]
[1738214387190,3.13261,3192.3,3191.7,4.58363888]
[1738214387779,3.13235,3192.5,3191.7,1.45058888]
[1738214387973,3.13235,3192.5,3191.8,3.13301]